bitfinex/quotes_SOLUSD_20251125
["timestamp","ask_amount","ask_price","bid_price","bid_amount"]
[1764074650618,0.7,136.86,136.83,5.49563619]
[1764074650916,14.30558111,136.88,136.84,5.49563619]
[1764074651125,8.80994492,136.89,136.85,5.49563619]
[1764074651323,0.7,136.88,136.85,5.49563619]
[1764074651525,0.7,136.88,136.84,5.49563619]
[1764074651836,0.7,136.88,136.85,5.49563619]
[1764074652027,0.7,136.88,136.86,5.49563619]
[1764074652357,9.50994492,136.9,136.85,7.30695351]
[1764074652523,9.50994492,136.9,136.86,5.49563619]
[1764074652524,0.7,136.89,136.86,5.49563619]
[1764074654057,0.7,136.89,136.85,7.30695351]
[1764074654252,0.7,136.89,136.85,12.8025897]
[1764074654453,0.7,136.89,136.86,5.49563619]
[1764074654770,8.80994492,136.83,136.81,5.49563619]
[1764074654969,8.80994492,136.83,136.78,0.7]
[1764074655167,0.7,136.82,136.79,5.49563619]
[1764074655750,8.80994492,136.81,136.77,12.80718111]
[1764074656051,8.80994492,136.81,136.78,5.49563619]
[1764074656258,8.80994492,136.79,136.76,5.49563619]
[1764074656569,34.57861388,136.84,136.78,5.49563619]
[1764074656570,9.50994492,136.83,136.78,5.49563619]
[1764074656874,8.80994492,136.79,136.73,29.55734452]
[1764074657072,5.49563619,136.76,136.68,0.7]
[1764074657367,8.80994492,136.72,136.66,0.7]
[1764074657667,5.49563619,136.73,136.66,0.7]
[1764074657668,8.80994492,136.7,136.66,5.49563619]
[1764074657873,5.49563619,136.7,136.66,5.49563619]
[1764074658177,8.80994492,136.68,136.66,5.49563619]
[1764074658687,8.80994492,136.66,136.6,7.32064421]
[1764074658876,8.80994492,136.63,136.6,7.32064421]
[1764074659083,0.7,136.68,136.62,5.49563619]
[1764074659269,8.80994492,136.67,136.65,5.49563619]
[1764074659467,8.80994492,136.67,136.66,5.49563619]
[1764074659685,8.80994492,136.7,136.66,5.49563619]
[1764074659999,8.80994492,136.7,136.62,3.26]
[1764074660000,8.80994492,136.7,136.68,5.49563619]
[1764074660182,8.80994492,136.7,136.64,3.26]
[1764074660357,8.80994492,136.7,136.67,12.81236678]
[1764074660874,9.50994492,136.7,136.68,5.49563619]
[1764074661080,9.50994492,136.7,136.67,12.81236678]
[1764074661261,8.80994492,136.7,136.68,5.49563619]
[1764074662078,8.80994492,136.71,136.69,5.49563619]
[1764074662280,8.80994492,136.71,136.7,12.81092514]
[1764074662456,8.80994492,136.71,136.69,12.8113394]
[1764074662876,9.50994492,136.71,136.69,5.49563619]
[1764074663081,9.50994492,136.71,136.65,18.29460969]
[1764074663082,0.68,136.7,136.68,12.81195962]
[1764074663291,0.68,136.7,136.67,12.8124349]
[1764074663591,6.17563619,136.7,136.66,7.31736143]
[1764074663782,8.80994492,136.66,136.61,7.32010833]
[1764074663994,12.06994492,136.66,136.61,5.49563619]
[1764074664297,8.80994492,136.64,136.62,5.49563619]
[1764074665285,8.80994492,136.64,136.61,5.49563619]
[1764074665488,8.80994492,136.62,136.6,7.32050887]
[1764074665784,8.80994492,136.65,136.61,5.49563619]
[1764074665989,0.68,136.64,136.62,5.49563619]
[1764074666284,8.80994492,136.65,136.63,5.49563619]
[1764074666582,0.68,136.64,136.61,5.49563619]
[1764074666991,25.11880892,136.67,136.63,5.49563619]
[1764074667166,0.68,136.69,136.64,0.71]
[1764074667365,0.68,136.69,136.65,5.49563619]
[1764074667566,0.68,136.69,136.66,5.49563619]
[1764074667765,7.31484495,136.71,136.63,0.71]
[1764074667766,8.80994492,136.71,136.68,5.49563619]
[1764074667991,3.94,136.72,136.69,5.49563619]
[1764074668358,8.80994492,136.71,136.69,5.49563619]
[1764074668560,7.31355213,136.74,136.69,5.49563619]
[1764074668561,0.68,136.74,136.7,5.49563619]
[1764074668778,8.80994492,136.73,136.72,5.49563619]
[1764074668978,8.80994492,136.73,136.7,5.49563619]
[1764074669185,8.80994492,136.71,136.69,5.49563619]
[1764074669385,8.80994492,136.71,136.7,5.49563619]
[1764074669692,8.80994492,136.71,136.69,5.49563619]
[1764074669913,8.80994492,136.7,136.68,5.49563619]
[1764074670580,0.68,136.7,136.68,12.8118377]
[1764074670782,8.80994492,136.68,136.67,7.31687036]
[1764074671088,14.30558111,136.68,136.59,0.91]
[1764074671277,14.30558111,136.66,136.6,7.32064421]
[1764074671477,8.80994492,136.63,136.6,12.8162804]
[1764074671670,8.80994492,136.63,136.6,7.32064421]
[1764074671877,8.80994492,136.63,136.59,0.2]
[1764074671878,8.80994492,136.61,136.59,7.52106911]
[1764074672192,9.48994492,136.63,136.59,0.2]
[1764074672391,9.48994492,136.63,136.59,5.69563619]
[1764074672768,9.48994492,136.63,136.6,5.49563619]
[1764074673796,9.48994492,136.63,136.59,0.2]
[1764074673996,8.80994492,136.61,136.59,0.2]
[1764074674179,8.80994492,136.6,136.59,0.2]
[1764074674601,8.80994492,136.62,136.59,0.2]
[1764074674806,8.80994492,136.62,136.59,13.01681636]
[1764074675012,14.98558111,136.62,136.59,0.2]
[1764074675505,8.80994492,136.62,136.6,5.49563619]
[1764074676585,8.80994492,136.62,136.6,7.32049779]
[1764074677381,9.48994492,136.62,136.59,13.01662706]
[1764074677599,5.49563619,136.61,136.59,0.2]
[1764074677908,0.68,136.61,136.59,0.2]
[1764074678110,0.68,136.61,136.59,7.52115371]
[1764074678280,8.80994492,136.6,136.59,0.2]
[1764074678483,16.13058913,136.6,136.59,0.2]
[1764074678696,14.98558111,136.6,136.59,0.2]
[1764074679004,9.48994492,136.6,136.59,0.2]
[1764074679201,8.80994492,136.61,136.59,0.2]
[1764074679384,14.98558111,136.61,136.59,0.2]
[1764074679585,9.48994492,136.61,136.59,7.521116]
[1764074679802,12.08994492,136.62,136.59,0.2]
[1764074680008,12.76994492,136.62,136.59,0.2]
[1764074680205,18.26558111,136.62,136.59,7.52115764]
[1764074680486,0.68,136.61,136.59,0.2]
[1764074680994,8.80994492,136.64,136.6,5.49563619]
[1764074681375,8.80994492,136.64,136.59,13.01679311]
[1764074681376,0.68,136.63,136.59,13.01679311]
[1764074681581,0.68,136.63,136.59,7.52115692]
[1764074681806,8.80994492,136.64,136.6,5.49563619]
[1764074682011,0.68,136.63,136.6,5.49563619]
[1764074682506,0.68,136.63,136.59,25.82410735]
[1764074682808,6.17563619,136.63,136.59,31.31974354]
[1764074683010,6.17563619,136.63,136.59,13.01679311]
[1764074683212,8.80994492,136.61,136.59,13.01679311]
[1764074683384,21.62419303,136.64,136.59,13.01679311]
[1764074683592,14.98558111,136.63,136.59,75.31679311]
[1764074683885,9.48994492,136.63,136.59,69.82113628]
[1764074684089,8.80994492,136.61,136.59,69.82113628]
[1764074684311,8.80994492,136.61,136.59,62.5]
[1764074684692,14.98558111,136.6,136.59,0.2]
[1764074685194,22.30622532,136.6,136.59,0.2]
[1764074686111,38.75725089,136.6,136.59,0.2]
[1764074687594,8.80994492,136.6,136.59,0.2]
[1764074687787,8.80994492,136.6,136.59,7.52118017]
[1764074688192,9.63210649,136.6,136.53,7.32435884]
[1764074688391,8.80994492,136.57,136.54,5.69563619]
[1764074688714,18.26558111,136.59,136.54,13.01934392]
[1764074688919,18.26558111,136.59,136.54,8.23370773]
[1764074689109,25.58692282,136.59,136.54,32.03899676]
[1764074689315,25.58692282,136.59,136.54,26.54336057]
[1764074689316,18.26558111,136.59,136.54,26.54336057]
[1764074689608,3.28,136.59,136.55,0.71]
[1764074689801,6.31779776,136.59,136.54,7.52370773]
[1764074690008,8.80994492,136.57,136.54,13.01934392]
[1764074690218,8.80994492,136.57,136.54,13.72934392]
[1764074690425,8.80994492,136.57,136.54,32.03899676]
[1764074690595,8.80994492,136.57,136.54,36.11864056]
[1764074690995,8.80994492,136.57,136.54,35.40864056]
[1764074691308,19.06522491,136.57,136.54,7.52370773]
[1764074691890,17.57758455,136.57,136.54,0.2]
[1764074692209,8.80994492,136.56,136.54,0.2]
[1764074692424,0.68,136.57,136.54,7.52385881]
[1764074692724,19.06522491,136.57,136.54,0.2]
[1764074692895,8.80994492,136.57,136.54,7.523697]
[1764074693223,8.80994492,136.57,136.54,17.09897699]
[1764074694609,9.47994492,136.57,136.54,7.523697]
[1764074695139,9.47994492,136.57,136.54,7.52385598]
[1764074695300,19.05522491,136.57,136.54,7.52385598]
[1764074695794,9.47994492,136.57,136.54,7.52385598]
[1764074698040,8.80994492,136.57,136.54,7.52385598]
[1764074698545,16.79219984,136.57,136.54,7.52385199]
[1764074698918,16.79219984,136.57,136.54,0.2]
[1764074699336,26.36747983,136.57,136.54,0.2]
[1764074699536,9.46994492,136.57,136.54,7.52385209]
[1764074699729,8.80994492,136.57,136.54,17.09913208]
[1764074700040,8.80994492,136.57,136.54,17.76913208]
[1764074700213,8.80994492,136.57,136.54,17.09913208]
[1764074700418,34.69408891,136.55,136.54,0.2]
[1764074700725,38.09625048,136.55,136.54,0.2]
[1764074700920,38.75625048,136.55,136.54,0.2]
[1764074701246,8.80994492,136.49,136.47,9.57527999]
[1764074701431,21.78738648,136.51,136.46,9.57527999]
[1764074701755,19.04522491,136.5,136.46,0.67]
[1764074702047,19.04522491,136.5,136.45,9.57527999]
[1764074702355,8.80994492,136.47,136.44,16.90431686]
[1764074702561,8.80994492,136.47,136.4,0.2]
[1764074702562,21.66522491,136.47,136.41,7.33084084]
[1764074702852,8.80994492,136.43,136.4,17.7765817]
[1764074703036,18.52738648,136.43,136.4,0.2]
[1764074703230,10.23527999,136.42,136.4,0.2]
[1764074703543,12.08994492,136.41,136.4,0.2]
[1764074703757,8.80994492,136.41,136.4,0.87]
[1764074703944,3.28,136.43,136.4,17.77665828]
[1764074704138,8.80994492,136.44,136.42,16.90558346]
[1764074704339,8.80994492,136.44,136.42,7.33030347]
[1764074704546,3.42216157,136.47,136.43,0.67]
[1764074704747,3.42216157,136.47,136.43,10.24527999]
[1764074704941,3.42216157,136.47,136.44,9.57527999]
[1764074705256,3.28,136.47,136.44,9.57527999]
[1764074705459,8.80994492,136.49,136.46,9.57527999]
[1764074705667,0.14216157,136.48,136.46,9.57527999]
[1764074705964,34.69408891,136.47,136.42,10.24527999]
[1764074706174,25.11880892,136.47,136.44,9.57527999]
[1764074706343,25.11880892,136.47,136.44,16.9043087]
[1764074706552,25.77880892,136.47,136.44,16.9043087]
[1764074706864,25.11880892,136.47,136.44,7.99902871]
[1764074707076,25.11880892,136.47,136.44,17.5743087]
[1764074707234,25.11880892,136.47,136.43,9.57527999]
[1764074707433,25.11880892,136.47,136.43,10.24527999]
[1764074707434,35.35408891,136.47,136.43,10.24527999]
[1764074707634,42.6817538,136.47,136.43,9.57527999]
[1764074707871,10.37744156,136.46,136.41,7.33062063]
[1764074708076,8.80994492,136.44,136.4,17.1065047]
[1764074708247,8.80994492,136.44,136.41,9.57527999]
[1764074708857,16.79925831,136.44,136.4,9.77527999]
[1764074709064,9.46994492,136.44,136.4,17.77665388]
[1764074709379,8.80994492,136.44,136.42,9.57527999]
[1764074709552,8.80994492,136.44,136.41,9.57527999]
[1764074709753,8.80994492,136.44,136.41,10.24527999]
[1764074709962,8.80994492,136.44,136.43,9.57527999]
[1764074710159,8.95210649,136.46,136.43,9.57527999]
[1764074710485,26.51557659,136.46,136.42,17.5754555]
[1764074710637,25.85557659,136.46,136.42,9.57527999]
[1764074710841,8.80994492,136.45,136.42,10.24527999]
[1764074711042,8.95210649,136.46,136.42,10.24527999]
[1764074711357,8.80994492,136.46,136.44,9.57527999]
[1764074711565,8.80994492,136.46,136.42,9.57527999]
[1764074711973,8.80994492,136.46,136.42,10.24527999]
[1764074712281,8.80994492,136.46,136.43,7.32976618]
[1764074712665,8.80994492,136.46,136.42,17.57552588]
[1764074712871,0.66,136.45,136.41,9.57527999]
[1764074713169,25.71342,136.46,136.41,17.57579547]
[1764074713473,18.38522491,136.46,136.42,10.24527999]
[1764074713877,8.80994492,136.46,136.43,9.57527999]
[1764074714177,8.80994492,136.46,136.44,9.57527999]
[1764074714379,8.80994492,136.46,136.44,16.90399467]
[1764074714668,8.80994492,136.46,136.44,9.57527999]
[1764074714874,8.80994492,136.46,136.43,10.24527999]
[1764074715080,8.80994492,136.46,136.43,9.57527999]
[1764074715278,0.80216157,136.45,136.42,7.32993544]
[1764074715572,8.80994492,136.46,136.42,7.32993544]
[1764074715756,18.38522491,136.46,136.42,17.57521543]
[1764074716149,19.04522491,136.46,136.42,17.57521543]
[1764074716344,19.04522491,136.46,136.41,18.3264112]
[1764074716345,9.57527999,136.44,136.4,0.2]
[1764074716567,8.80994492,136.43,136.41,9.57527999]
[1764074717173,21.66522491,136.45,136.41,9.57527999]
[1764074717466,9.71744156,136.44,136.4,7.53125969]
[1764074717683,8.80994492,136.42,136.4,7.53125969]
[1764074717857,8.80994492,136.43,136.4,17.10653968]
[1764074718563,8.80994492,136.43,136.4,17.77653968]
[1764074718963,8.80994492,136.43,136.4,7.53125969]
[1764074719279,9.46994492,136.43,136.4,7.53125969]
[1764074719591,8.80994492,136.43,136.4,17.10653968]
[1764074719771,8.80994492,136.43,136.4,17.77653968]
[1764074721289,8.80994492,136.43,136.4,36.10498542]
[1764074721480,8.80994492,136.43,136.41,9.57527999]
[1764074721680,8.80994492,136.43,136.41,10.24527999]
[1764074721988,8.80994492,136.43,136.41,9.57527999]
[1764074722163,8.80994492,136.43,136.41,10.24527999]
[1764074722575,8.80994492,136.43,136.42,10.24527999]
[1764074722891,8.80994492,136.43,136.42,9.57527999]
[1764074723062,8.80994492,136.43,136.41,10.24527999]
[1764074723264,8.80994492,136.43,136.41,7.33032262]
[1764074723483,8.80994492,136.43,136.41,16.90560261]
[1764074724771,8.80994492,136.43,136.4,18.52844574]
[1764074724772,9.49994492,136.43,136.4,7.53129705]
[1764074725088,18.38522491,136.41,136.4,0.2]
[1764074725393,22.35522491,136.41,136.4,0.2]
[1764074726473,12.08994492,136.41,136.4,0.2]
[1764074729167,12.77994492,136.41,136.4,0.2]
[1764074729375,20.11078576,136.41,136.4,0.2]
[1764074729688,29.82822732,136.41,136.4,0.2]
[1764074730471,22.49738648,136.41,136.4,0.2]
[1764074730974,12.23210649,136.41,136.4,0.2]
[1764074731595,19.56294733,136.41,136.4,0.2]
[1764074731766,29.82822732,136.41,136.4,0.2]
[1764074733181,8.80994492,136.41,136.4,17.82665828]
[1764074733978,8.80994492,136.43,136.4,17.82665828]
[1764074734180,8.80994492,136.43,136.41,10.29527999]
[1764074734373,7.32815911,136.46,136.42,9.57527999]
[1764074734374,3.28,136.46,136.42,9.57527999]
[1764074734579,3.28,136.46,136.43,9.57527999]
[1764074734778,8.80994492,136.45,136.43,0.72]
[1764074735085,8.80994492,136.45,136.43,8.04944914]
[1764074735403,8.80994492,136.45,136.42,9.57527999]
[1764074735700,8.80994492,136.45,136.43,0.72]
[1764074735901,50.0,136.63,136.43,0.72]
[1764074735902,55.62264899,136.56,136.43,0.72]
[1764074736205,12.85527999,136.53,136.48,9.57527999]
[1764074736382,8.95210649,136.51,136.48,9.57527999]
[1764074736582,8.80994492,136.51,136.49,0.72]
[1764074736901,12.85527999,136.55,136.5,9.57527999]
[1764074737098,34.83625048,136.54,136.5,16.90087147]
[1764074737307,34.83625048,136.54,136.5,8.04559148]
[1764074737606,3.28,136.55,136.52,9.57527999]
[1764074737809,8.95210649,136.54,136.52,9.57527999]
[1764074738103,0.14216157,136.51,136.48,7.32708089]
[1764074738399,12.08994492,136.52,136.49,9.57527999]
[1764074738586,12.08994492,136.52,136.5,9.57527999]
[1764074738783,12.08994492,136.52,136.48,9.57527999]
[1764074738990,12.08994492,136.52,136.49,0.72]
[1764074739192,12.08994492,136.52,136.49,17.62168502]
[1764074739792,9.71744156,136.51,136.48,7.32692415]
[1764074740102,8.80994492,136.5,136.46,16.90291877]
[1764074740309,8.80994492,136.5,136.46,17.62291877]
[1764074740602,8.80994492,136.46,136.43,0.72]
[1764074740798,8.80994492,136.47,136.45,10.29527999]
[1764074741004,8.80994492,136.47,136.46,9.57527999]
[1764074741306,8.80994492,136.47,136.45,9.57527999]
[1764074741513,8.80994492,136.47,136.45,0.72]
[1764074741712,8.80994492,136.49,136.46,10.29527999]
[1764074741898,8.80994492,136.49,136.47,9.57527999]
[1764074742209,8.80994492,136.49,136.47,10.29527999]
[1764074742692,8.95210649,136.5,136.47,10.29527999]
[1764074742900,8.80994492,136.5,136.48,10.29527999]
[1764074743207,8.80994492,136.51,136.48,8.04661385]
[1764074743725,8.80994492,136.51,136.48,16.90189384]
[1764074743920,8.80994492,136.54,136.5,9.57527999]
[1764074744093,8.80994492,136.54,136.49,0.72]
[1764074744094,8.80994492,136.54,136.51,10.29527999]
[1764074744289,8.80994492,136.54,136.51,9.57527999]
[1764074744495,19.07522491,136.54,136.5,9.57527999]
[1764074744915,18.38522491,136.54,136.5,10.29527999]
[1764074745138,8.80994492,136.52,136.48,7.32661385]
[1764074745301,8.80994492,136.52,136.49,9.57527999]
[1764074745495,8.80994492,136.52,136.49,10.29527999]
[1764074745691,8.95210649,136.53,136.5,9.57527999]
[1764074745993,8.95210649,136.53,136.48,7.32661385]
[1764074746200,9.64210649,136.53,136.49,10.29527999]
[1764074746629,9.64210649,136.53,136.48,7.32661385]
[1764074746630,0.14216157,136.53,136.5,10.29527999]
[1764074746796,8.80994492,136.54,136.5,10.29527999]
[1764074747306,8.80994492,136.54,136.51,7.32547066]
[1764074748122,40.42674586,136.63,136.51,7.32547066]
[1764074748123,18.29,136.61,136.53,9.57527999]
[1764074748302,9.57527999,136.58,136.52,0.72]
[1764074748504,3.28,136.58,136.55,9.57527999]
[1764074748901,3.97,136.58,136.52,0.72]
[1764074749132,3.97,136.58,136.54,9.57527999]
[1764074749133,13.54527999,136.58,136.54,9.57527999]
[1764074749425,13.54527999,136.58,136.51,18.31367665]
[1764074749426,10.26527999,136.57,136.51,18.31367665]
[1764074749599,0.14216157,136.56,136.53,9.57527999]
[1764074749798,13.54527999,136.58,136.53,9.57527999]
[1764074750017,0.69,136.57,136.54,9.57527999]
[1764074750221,8.80994492,136.56,136.54,9.57527999]
[1764074750806,8.80994492,136.56,136.52,26.35700596]
[1764074751005,9.49994492,136.56,136.53,9.57527999]
[1764074751421,19.07522491,136.56,136.53,7.32434493]
[1764074751624,18.38522491,136.56,136.53,7.32434493]
[1764074751818,19.07522491,136.56,136.53,7.32434493]
[1764074752504,0.14216157,136.56,136.53,13.54421116]
[1764074752705,0.14216157,136.56,136.54,5.49986623]
[1764074753528,0.14216157,136.56,136.53,12.82418322]
[1764074753716,8.80994492,136.54,136.51,67.79986623]
[1764074754102,8.80994492,136.54,136.5,7.32600732]
[1764074754103,8.80994492,136.52,136.5,7.32600732]
[1764074754304,8.80994492,136.52,136.48,5.49986623]
[1764074754305,17.58981115,136.52,136.48,5.49986623]
[1764074754504,8.80994492,136.48,136.46,7.32793057]
[1764074754711,14.97981115,136.48,136.44,5.49986623]
[1764074755007,9.47994492,136.48,136.44,31.15193619]
[1764074755207,8.80994492,136.48,136.45,6.18986623]
[1764074755416,8.80994492,136.48,136.46,7.32815477]
[1764074755816,8.80994492,136.48,136.45,12.82852175]
[1764074756211,8.80994492,136.48,136.46,0.69]
[1764074756421,8.80994492,136.48,136.45,31.15025132]
[1764074756624,8.80994492,136.48,136.45,31.84025132]
[1764074757809,8.80994492,136.48,136.45,31.15025132]
[1764074758025,8.80994492,136.48,136.46,6.16986623]
[1764074758236,3.28,136.49,136.47,5.49986623]
[1764074758438,8.95210649,136.51,136.48,5.49986623]
[1764074758813,8.95210649,136.51,136.47,6.16986623]
[1764074759021,9.61210649,136.51,136.47,6.16986623]
[1764074759233,9.61210649,136.51,136.47,5.49986623]
[1764074759435,15.11197272,136.51,136.47,12.82707581]
[1764074759826,9.61210649,136.51,136.47,12.82707581]
[1764074760134,9.61210649,136.51,136.47,31.14612028]
[1764074760310,9.61210649,136.51,136.47,7.32720958]
[1764074760510,9.61210649,136.51,136.48,5.49986623]
[1764074760729,9.61210649,136.51,136.47,12.82707581]
[1764074760936,8.80994492,136.51,136.49,5.49986623]
[1764074761118,8.80994492,136.53,136.5,5.49986623]
[1764074761526,14.30981115,136.51,136.45,16.308864]
[1764074761724,14.30981115,136.51,136.46,12.828021]
[1764074761928,12.08994492,136.51,136.47,5.49986623]
[1764074762126,12.08994492,136.51,136.47,6.16986623]
[1764074762324,8.80994492,136.49,136.44,3.95]
[1764074762535,8.80994492,136.49,136.46,5.49986623]
[1764074762734,8.77986623,136.51,136.47,5.49986623]
[1764074762921,17.58981115,136.51,136.47,5.49986623]
[1764074763112,0.66,136.5,136.47,5.49986623]
[1764074763443,8.80994492,136.49,136.46,12.82762664]
[1764074764341,8.95210649,136.5,136.47,5.49986623]
[1764074765345,9.61210649,136.5,136.46,6.16986623]
[1764074765726,15.11197272,136.5,136.46,75.79799081]
[1764074765932,9.61210649,136.5,136.46,75.79799081]
[1764074766523,9.61210649,136.5,136.47,5.49986623]
[1764074767434,8.95210649,136.5,136.47,6.16986623]
[1764074767632,8.95210649,136.5,136.48,7.32708089]
[1764074767823,9.61210649,136.5,136.47,62.3]
[1764074768025,8.80994492,136.48,136.47,62.3]
[1764074768350,8.80994492,136.48,136.46,62.3]
[1764074768536,9.46994492,136.48,136.46,69.62813332]
[1764074768944,14.96981115,136.48,136.46,62.3]
[1764074769154,8.80994492,136.46,136.41,18.32665762]
[1764074769450,8.80994492,136.46,136.41,7.33084084]
[1764074769451,5.49986623,136.45,136.41,7.33084084]
[1764074769619,6.15986623,136.45,136.41,13.50070707]
[1764074770035,6.15986623,136.45,136.41,8.00084084]
[1764074770239,6.15986623,136.45,136.41,13.50070707]
[1764074770436,13.48858239,136.45,136.41,12.83070707]
[1764074770628,8.80994492,136.46,136.43,5.49986623]
[1764074770834,8.80994492,136.46,136.44,5.49986623]
[1764074771040,14.30981115,136.46,136.42,5.49986623]
[1764074771233,14.96981115,136.46,136.42,5.49986623]
[1764074771843,9.46994492,136.46,136.43,7.32976618]
[1764074772245,8.80994492,136.46,136.43,13.49963241]
[1764074772444,8.80994492,136.46,136.44,5.49986623]
[1764074772633,3.28,136.47,136.45,5.49986623]
[1764074772840,6.15986623,136.47,136.43,31.15404786]
[1764074773040,6.15986623,136.47,136.43,7.32976618]
[1764074773244,8.80994492,136.48,136.43,13.49963241]
[1764074773555,0.14216157,136.47,136.43,13.49963241]
[1764074773753,6.3020278,136.47,136.42,12.82977859]
[1764074773935,8.80994492,136.45,136.42,12.82977859]
[1764074774249,8.80994492,136.45,136.42,13.49977859]
[1764074774653,8.80994492,136.45,136.42,75.79977859]
[1764074774958,8.80994492,136.45,136.42,68.46986623]
[1764074775452,8.80994492,136.45,136.42,67.79986623]
[1764074775653,9.46994492,136.45,136.42,75.13002509]
[1764074775829,8.80994492,136.43,136.42,69.63015886]
[1764074776027,8.80994492,136.43,136.4,19.19777461]
[1764074776028,14.45197272,136.43,136.4,7.53109285]
[1764074776222,8.95210649,136.43,136.4,13.70095908]
[1764074776423,8.80994492,136.44,136.4,13.03095908]
[1764074776643,8.80994492,136.44,136.41,5.49986623]
[1764074776839,14.96981115,136.45,136.41,5.49986623]
[1764074777045,5.49986623,136.43,136.4,7.53109285]
[1764074777245,14.30981115,136.41,136.4,0.2]
[1764074777642,14.96981115,136.41,136.4,0.2]
[1764074778553,8.80994492,136.41,136.4,7.53137829]
[1764074778864,8.80994492,136.41,136.4,0.2]
[1764074779675,9.46994492,136.41,136.4,0.2]
[1764074779877,22.44281356,136.41,136.4,0.2]
[1764074782200,25.11880892,136.38,136.37,0.2]
[1764074782362,34.04083672,136.38,136.37,0.2]
[1764074782568,12.23210649,136.38,136.37,0.2]
[1764074783073,12.08994492,136.38,136.37,0.2]
[1764074785555,25.72442615,136.38,136.37,0.2]
[1764074787787,42.03329015,136.38,136.37,0.2]
[1764074789981,25.72442615,136.38,136.37,0.2]
[1764074791476,34.04083672,136.38,136.37,0.2]
[1764074791665,34.55867515,136.38,136.37,0.2]
[1764074791865,34.70083672,136.38,136.37,0.2]
[1764074792782,42.03329015,136.38,136.37,0.2]
[1764074793392,8.80994492,136.38,136.37,7.53299112]
[1764074793573,8.80994492,136.38,136.37,0.2]
[1764074793881,17.58981115,136.38,136.37,0.2]
[1764074795173,18.39197272,136.38,136.37,0.2]
[1764074795371,34.70083672,136.38,136.37,0.2]
[1764074795582,42.03329015,136.38,136.37,0.2]
[1764074796278,34.70083672,136.38,136.37,0.2]
[1764074796587,42.03329015,136.38,136.37,0.2]
[1764074796789,34.70083672,136.38,136.37,0.2]
[1764074797089,28.39880892,136.38,136.37,0.2]
[1764074797990,41.37329015,136.38,136.37,0.2]
[1764074798298,42.03329015,136.38,136.37,0.2]
[1764074798993,34.04083672,136.38,136.37,0.2]
[1764074799207,12.08994492,136.38,136.37,8.20299112]
[1764074799390,12.08994492,136.38,136.37,0.87]
[1764074799608,12.08994492,136.38,136.37,69.83299112]
[1764074799885,5.49986623,136.45,136.37,32.03533516]
[1764074800092,8.77986623,136.44,136.4,7.33118349]
[1764074800508,5.6420278,136.42,136.38,19.00038636]
[1764074800687,8.80994492,136.4,136.38,0.67]
[1764074800888,8.80994492,136.4,136.38,8.00226516]
[1764074801576,8.80994492,136.4,136.38,0.67]
[1764074801795,8.80994492,136.4,136.38,8.00233277]
[1764074802780,8.80994492,136.4,136.39,0.67]
[1764074803099,8.80994492,136.4,136.39,6.16986623]
[1764074804200,8.80994492,136.42,136.39,6.16986623]
[1764074804401,8.77986623,136.43,136.4,0.67]
[1764074804402,12.08994492,136.43,136.4,0.67]
[1764074804592,12.08994492,136.43,136.4,8.00088665]
[1764074804898,17.58981115,136.43,136.4,7.33088665]
[1764074805119,24.91961103,136.43,136.39,8.00181565]
[1764074805283,18.24981115,136.43,136.39,13.50168188]
[1764074806194,12.74994492,136.43,136.39,13.50168188]
[1764074806394,18.24981115,136.43,136.39,13.50168188]
[1764074807110,25.57968086,136.43,136.39,13.50168188]
[1764074807421,15.11197272,136.42,136.39,7.33181565]
[1764074807781,14.45197272,136.4,136.38,7.33241044]
[1764074807981,17.71197272,136.4,136.38,7.33241044]
[1764074808177,17.71197272,136.4,136.37,69.83276453]
[1764074808417,18.37197272,136.4,136.37,62.5]
[1764074808719,8.80994492,136.38,136.37,62.5]
[1764074809088,8.80994492,136.38,136.37,69.83299112]
[1764074809511,5.71813335,136.4,136.37,70.50299112]
[1764074810081,3.40216157,136.4,136.37,69.83299112]
[1764074810302,3.40216157,136.4,136.38,2.98597178]
[1764074810585,12.21210649,136.4,136.38,8.00222298]
[1764074811514,3.26,136.4,136.39,0.67]
[1764074812391,12.06994492,136.41,136.38,7.33222298]
[1764074812712,12.06994492,136.41,136.38,8.00222298]
[1764074813004,12.06994492,136.41,136.39,0.67]
[1764074813216,12.06994492,136.41,136.39,62.97]
[1764074814285,0.14216157,136.4,136.39,62.3]
[1764074814491,0.14216157,136.38,136.37,0.2]
[1764074814686,38.11921959,136.38,136.37,0.2]
[1764074814888,38.78921959,136.38,136.37,0.2]
[1764074816516,46.12167302,136.38,136.37,0.2]
[1764074816710,35.85342392,136.38,136.37,0.2]
[1764074817026,46.12167302,136.38,136.37,0.2]
[1764074818720,28.52097049,136.38,136.37,0.2]